Workbook

Sheet Лист1
B12: Согласовано | I12: Разработано и утвеждено
B13: Руководитель общеобразовательного учреждения | I13: Директор ООО "ФУДСОЦСЕРВИС"
B15: ________________________ | I15: ________________Э.Р. Харламова
B20: Примерное цикличное двенадцатидневное меню
B21: Для организации питания обучающихся общеобразовательных организаций Республики Татарстан
B22: в возрасте с12лет и старше (5-11 классы)
B48: ПРИМЕРНОЕ ДВУХНЕДЕЛЬНОЕ МЕНЮ ДЛЯ ОБУЧАЮЩИХСЯ В ОБЩЕОБРАЗОВАТЕЛЬНЫХ ОРГАНИЗАЦИЯХ С 5 по 11 КЛАССЫ
B49: (общеобразовательные организации с режимом обучения до 6 часов)
A51: № рецептуры | B51: Наименование блюд | C51: Выход,г | D51: Белки, г | E51: Жиры, г | F51: Углеводы, г | G51: Калорийность, ккал | H51: Витамин B1, мг | I51: Витамин С, мг | J51: Витамин А, мг | K51: Витамин Е, мг | L51: Ca, мг | M51: P, мг | N51: Mg, мг | O51: Fe, мг
B52: 1-ая неделя
B53: 1 день
A54: № 59 Сбор.рец. На прод-ию для обуч. Во всех образ.учреж-Дели 2017 | B54: Салат из моркови с яблоками | C54: 100 | D54: 1.06 | E54: 0.17 | F54: 8.52 | G54: 39.90 | H54: 0.05 | I54: 4.38 | J54: 0.00 | K54: 0.35 | L54: 23.99 | M54: 44.53 | N54: 30.39 | O54: 1.07
A55: № 271 Сбор.рец. На прод-ию для обуч. Во всех образ.учреж-Дели 2017 | B55: Котлета домашняя из говядины | C55: 100 | D55: 11.28 | E55: 16.71 | F55: 9.00 | G55: 221.74 | H55: 0.15 | I55: 0.22 | J55: 3.04 | K55: 2.52 | L55: 14.98 | M55: 116.22 | N55: 17.87 | O55: 1.89
A56: № 203 Сбор.рец. На прод-ию для обуч. Во всех образ.учреж-Дели 2017 | B56: Макаронные изделия отварные с маслом сливочным | C56: 180/5 | D56: 6.83 | E56: 4.43 | F56: 38.37 | G56: 220.56 | H56: 0.07 | I56: 0.00 | J56: 20.00 | K56: 0.98 | L56: 14.63 | M56: 46.10 | N56: 10.34 | O56: 1.03
A57: №349 Сбор.рец. На прод-ию для обуч. Во всех образ.учреж-Дели 2017 | B57: Компот из сухофруктов (75С) | C57: 200 | D57: 0.66 | E57: 0.09 | F57: 22.03 | G57: 92.90 | H57: 0.02 | I57: 0.73 | J57: 0.00 | K57: 0.51 | L57: 32.48 | M57: 23.44 | N57: 17.46 | O57: 0.70
A58: Хим.состав и калорийность российских продуктов питания табл 6 стр 134 , 2012 Дели + | B58: Хлеб пшеничный | C58: 30 | D58: 2.280 | E58: 0.240 | F58: 14.760 | G58: 71 | H58: 0.033 | I58: 0 | J58: 0 | K58: 0.330 | L58: 6.000 | M58: 19.500 | N58: 4.200 | O58: 0.330
A59: Хим.состав и калорийность российских продуктов питания,табл 6, стр 144 , 2012 Дели + | B59: Хлеб ржаной | C59: 35 | D59: 2.31 | E59: 0.42 | F59: 13.86 | G59: 69.30 | H59: 0.06 | I59: 0.00 | J59: 0.00 | K59: 0.49 | L59: 10.15 | M59: 52.50 | N59: 16.45 | O59: 1.37
B60: Итого: | C60: 650 | D60: =D55+D56+D58+D59 -> 22.70 | E60: =E54+E55+E56+E57+E58+E59 -> 22.06 | F60: =F55+F56+F57+F58+F59 -> 98.02 | G60: =G55+G56+G57+G58+G59 -> 675.00 | H60: =H54+H55+H56+H58+H59 -> 0.37 | I60: 4.59 | J60: 23.04 | K60: 4.66 | L60: 69.75 | M60: 278.85 | N60: 79.25 | O60: 5.68 | P60: =P54+P55+P56+P57+P58+P59 -> 0.00 | Q60: =Q54+Q55+Q56+Q57+Q58+Q59 -> 0.00
B62: 2 день
A63: № 15 Сбор.рец. На прод-ию для обуч. Во всех образ.учреж-Дели -2017 | B63: Сыр порционно | C63: 10 | D63: 2.63 | E63: 2.66 | F63: 0.00 | G63: 34.33 | H63: 0.00 | I63: 0.07 | J63: 21.00 | K63: 0.04 | L63: 100.00 | M63: 60.00 | N63: 5.50 | O63: 0.07
A64: № 260 Сбор.рец. На прод-ию для обуч. Во всех образ.учреж-Дели -2017 | B64: Гуляш из говядины | C64: 50/50 | D64: 10.45 | E64: 11.71 | F64: 22.89 | G64: 221.00 | H64: 0.03 | I64: 0.92 | K64: 2.61 | L64: 21.81 | M64: 154.15 | N64: 22.03 | O64: 3.06
A65: № 171 Сбор.рец. На прод-ию для обуч. Во всех образ.учреж-Дели 2015 | B65: Каша гречневая рассыпчатая с маслом сливочным | C65: 180/3 | D65: 5.55 | E65: 6.93 | F65: 37.71 | G65: 276.56 | H65: 0.25 | I65: 0.00 | J65: 11.98 | K65: 0.50 | L65: 29.51 | M65: 249.72 | N65: 168.62 | O65: 5.66
A66: № 377 Сбор.рец. На прод-ию для обуч. Во всех образ.учреж-Дели 2017 | B66: Чай с сахаром, с лимоном | C66: 185/10/5 | D66: 0.13 | E66: 0.02 | F66: 10.20 | G66: 42.00 | I66: 2.83 | K66: 0.01 | L66: 14.05 | M66: 4.40 | N66: 2.40 | O66: 0.34
A67: Хим.состав и калорийность российских продуктов питания табл 6 стр 134 , 2012 Дели + | B67: Хлеб пшеничный | C67: 20 | D67: 1.520 | E67: 0.160 | F67: 9.840 | G67: 47 | H67: 0.022 | I67: 0 | J67: 0 | K67: 0.220 | L67: 4.000 | M67: 13.000 | N67: 2.800 | O67: 0.220
A68: Хим.состав и калорийность российских продуктов питания,табл 6, стр 144 , 2012 Дели + | B68: Хлеб ржаной | C68: 40 | D68: 2.64 | E68: 0.48 | F68: 15.84 | G68: 79.20 | H68: 0.07 | I68: 0.00 | J68: 0.00 | K68: 0.56 | L68: 11.60 | M68: 60.00 | N68: 18.80 | O68: 1.56
B69: Итого: | C69: 553 | D69: =SUM(D63:D68) -> 22.92 | E69: =SUM(E63:E68) -> 21.96 | F69: 96.48 | G69: 700.09 | H69: 0.38 | I69: 3.82 | J69: 32.98 | K69: 3.94 | L69: 180.97 | M69: 541.27 | N69: 220.15 | O69: 10.91 | P69: 25% | Q69: 25%
B71: 3 день
A72: № 67 Сбор.рец. На прод-ию для обуч. Во всех образ.учреж-Дели 2017, 366/2016 | B72: Винегрет овощной | C72: 100 | D72: 1.40 | E72: 10.04 | F72: 7.29 | G72: 125.10 | H72: 0.04 | I72: 9.63 | J72: 0.00 | K72: 4.50 | L72: 31.24 | M72: 43.27 | N72: 19.53 | O72: 0.83
A73: № 293 Сбор.рец. На прод-ию для обуч. Во всех образ.учреж-Дели 2017, 366/2016 | B73: Куриные бедра запеченные с томатным соусом | C73: 90/20 | D73: 12.00 | E73: 10.04 | F73: 13.76 | G73: 195.10 | H73: 0.10 | I73: 3.04 | J73: 64.92 | K73: 1.70 | L73: 47.55 | M73: 162.01 | N73: 24.73 | O73: 1.65
A74: № Сбор.рец. На прод-ию для обуч. Во всех образ.учреж-Дели 2017 | B74: Рис отварной рассыпчатый | C74: 180 | D74: 5.45 | E74: 11.45 | F74: 44.12 | G74: 262.64 | H74: 0.03 | I74: 0.00 | J74: 0.00 | K74: 0.34 | L74: 1.64 | M74: 73.13 | N74: 19.60 | O74: 0.63
A75: № 376 Сбор.рец. На прод-ию для обуч. Во всех образ.учреж-Дели 2017 | B75: Чай с сахаром | C75: 190/10 | D75: 0.07 | E75: 0.02 | F75: 10.00 | G75: 40.00 | I75: 0.03 | L75: 10.95 | M75: 2.80 | N75: 1.40 | O75: 0.26
A76: Хим.состав и калорийность российских продуктов питания,табл 6, стр 144 , 2012 Дели + | B76: Хлеб ржаной | C76: 40 | D76: 2.64 | E76: 0.48 | F76: 15.84 | G76: 79.20 | H76: 0.07 | I76: 0.00 | J76: 0.00 | K76: 0.56 | L76: 11.60 | M76: 60.00 | N76: 18.80 | O76: 1.56
B77: Итого: | C77: 650 | D77: =SUM(D72:D76) -> 21.56 | E77: 24.13 | F77: =SUM(F72:F76) -> 91.01 | G77: 702.04 | H77: 0.25 | I77: 12.70 | J77: 64.92 | K77: 7.10 | L77: 102.97 | M77: 341.21 | N77: 84.07 | O77: 4.93 | P77: 25% | Q77: 25%
B79: 4 день
A80: № 45 Сбор.рец. На прод-ию для обуч. Во всех образ.учреж-Дели -2017 | B80: Салат из белокочанной капусты | C80: 100 | D80: 1.31 | E80: 3.25 | F80: 6.47 | G80: 60.40 | H80: 0.02 | I80: 17.10 | J80: 0.00 | K80: 8.39 | L80: 24.97 | M80: 28.31 | N80: 15.09 | O80: 0.47
A81: № 229 Сбор.рец. На прод-ию для обуч. Во всех образ.учреж-Дели 2017 | B81: Рыба, тушенная в томате с овощами | C81: 50/50 | D81: 9.15 | E81: 5.62 | F81: 7.80 | G81: 105.00 | H81: 0.05 | I81: 3.73 | J81: 5.82 | K81: 2.52 | L81: 39.07 | M81: 162.19 | N81: 48.53 | O81: 0.85
A82: № 312 Сбор.рец. На прод-ию для обуч. Во всех образ.учреж-Дели -2017 | B82: Пюре картофельное с маслом сливочным | C82: 180/3 | D82: 3.71 | E82: 7.95 | F82: 24.57 | G82: 184.50 | H82: 0.17 | I82: 21.79 | J82: 12.00 | K82: 0.25 | L82: 45.09 | M82: 104.81 | N82: 33.30 | O82: 1.16
A83: № 342 Сбор.рец. На прод-ию для обуч. Во всех образ.учреж-Дели 2017 | B83: Компот из свежих яблок (75 С) | C83: 200 | D83: 0.16 | E83: 0.16 | F83: 13.91 | G83: 58.74 | H83: 0.01 | I83: 0.90 | J83: 0.00 | K83: 0.08 | L83: 14.18 | M83: 4.40 | N83: 5.14 | O83: 0.95
A84: Хим.состав и калорийность российских продуктов питания табл 6 стр 134 , 2012 Дели + | B84: Хлеб пшеничный | C84: 30 | D84: 2.280 | E84: 0.240 | F84: 14.760 | G84: 71 | H84: 0.033 | I84: 0 | J84: 0 | K84: 0.330 | L84: 6.000 | M84: 19.500 | N84: 4.200 | O84: 0.330
A85: Хим.состав и калорийность российских продуктов питания,табл 6, стр 144 , 2012 Дели + | B85: Хлеб ржаной | C85: 25 | D85: 1.65 | E85: 0.30 | F85: 9.90 | G85: 49.50 | H85: 0.04 | I85: 0.00 | J85: 0.00 | K85: 0.35 | L85: 7.25 | M85: 37.50 | N85: 11.75 | O85: 0.98
B86: Итого: | C86: 638 | D86: =D80+D81+D82+D83+D84+D85 -> 18.26 | E86: =E80+E81+E82+E83+E84+E85 -> 17.52 | F86: 77.41 | G86: 528.64 | H86: 0.33 | I86: 43.52 | J86: 17.82 | K86: 11.92 | L86: 136.56 | M86: 356.71 | N86: 118.01 | O86: 4.73 | P86: 20% | Q86: 20%
B89: 5 день
A90: Хим.состав и калорийность российских продуктов питания табл 9 стр 184 , 2012 Дели + | B90: Плоды и ягоды свежие (яблоки) | C90: 100 | D90: 0.40 | E90: 0.40 | F90: 9.80 | G90: 47.00 | H90: 0.03 | I90: 10.00 | K90: 0.20 | L90: 16.00 | M90: 11.00 | N90: 9.00 | O90: 2.20
A91: № 15 Сбор.рец. На прод-ию для обуч. Во всех образ.учреж-Дели 2017 | B91: Сыр порционно | C91: 10 | D91: 2.03 | E91: 2.63 | F91: 0.00 | G91: 34.33 | H91: 0.00 | I91: 0.07 | J91: 21.00 | K91: 0.04 | L91: 100.00 | M91: 60.00 | N91: 5.50 | O91: 0.07
A92: № 390,391,392 Сбор.рец. На прод-ию для обуч. Во всех образ.учреж-Дели 2017 | B92: Пельмени мясные отварные с маслом сливочным | C92: 195/5 | D92: 16.49 | E92: 19.193 | F92: 54.002 | G92: 432 | H92: 0.165 | I92: 0.379 | J92: 41.068 | K92: 0.00145631068 | L92: 23.715 | M92: 124.510 | N92: 36.097 | O92: 0.942
A93: № 376 Сбор.рец. На прод-ию для обуч. Во всех образ.учреж-Дели 2017 | B93: Чай с сахаром | C93: 190/10 | D93: 0.07 | E93: 0.02 | F93: 10.00 | G93: 40.00 | I93: 0.03 | L93: 10.95 | M93: 2.80 | N93: 1.40 | O93: 0.26
A94: Хим.состав и калорийность российских продуктов питания табл 6 стр 134 , 2012 Дели + | B94: Хлеб пшеничный | C94: 40 | D94: 3.04 | E94: 0.32 | F94: 19.68 | G94: 94.00 | H94: 0.04 | I94: 0.00 | J94: 0.00 | K94: 0.44 | L94: 8.00 | M94: 26.00 | N94: 5.60 | O94: 0.44
B95: Итого: | C95: 550 | D95: =SUM(D90:D94) -> 22.03 | E95: =SUM(E90:E94) -> 22.56 | F95: 93.48 | G95: 647.36 | H95: 0.24 | I95: 10.48 | J95: 62.07 | K95: 0.68 | L95: 158.66 | M95: 224.31 | N95: 57.60 | O95: 3.91 | P95: 25% | Q95: 25%
A102: № рецептуры | B102: Наименование блюд | C102: Выход,г | D102: Белки, г | E102: Жиры, г | F102: Углеводы, г | G102: Калорийность, ккал | H102: Витамин B1, мг | I102: Витамин С, мг | J102: Витамин А, мг | K102: Витамин Е, мг | L102: Ca, мг | M102: P, мг | N102: Mg, мг | O102: Fe, мг
B103: 2-ая неделя
B104: 1 день
A105: Хим.состав и калорийность российских продуктов питания табл 9 стр 184 , 2012 Дели + | B105: Плоды и ягоды свежие (яблоки) | C105: 100 | D105: 0.4 | E105: 0.4 | F105: 9.8 | G105: 47 | H105: 0.03 | I105: 10 | K105: 0.2 | L105: 16 | M105: 11 | N105: 9 | O105: 2.2
A106: №293 Сбор.рец. На прод-ию для обуч. Во всех образ.учреж-Дели 2017 | B106: Птица запеченная | C106: 100 | D106: 9.870 | E106: 17.720 | F106: 0.000 | G106: 210.4 | H106: 0.080 | I106: 2.700 | J106: 107.2 | K106: 2.120 | L106: 54.100 | M106: 190.580 | N106: 24.920 | O106: 2.200
A107: № 203 Сбор.рец. На прод-ию для обуч. Во всех образ.учреж-Дели 2017 | B107: Макаронные изделия отварные с маслом сливочным | C107: 180/3 | D107: 6.120 | E107: 2.980 | F107: 40.347 | G107: 207 | H107: 0.068 | I107: 0.000 | J107: 12.000 | K107: 0.96 | L107: 14.150 | M107: 45.500 | N107: 10.343 | O107: 1.023
A108: № 376 Сбор.рец. На прод-ию для обуч. Во всех образ.учреж-Дели 2017 | B108: Чай с сахаром,с яблоком | C108: 180/10/10 | D108: 0.110 | E108: 0.060 | F108: 10.990 | G108: 45 | H108: 0.003 | I108: 1.030 | K108: 0.020 | L108: 12.700 | M108: 3.900 | N108: 2.300 | O108: 0.500
A109: Хим.состав и калорийность российских продуктов питания табл 6 стр 134 , 2012 Дели + | B109: Хлеб пшеничный | C109: 30 | D109: 2.280 | E109: 0.240 | F109: 14.760 | G109: 71 | H109: 0.033 | I109: 0 | J109: 0 | K109: 0.330 | L109: 6.000 | M109: 19.500 | N109: 4.200 | O109: 0.330
A110: Хим.состав и калорийность российских продуктов питания,табл 6, стр 144 , 2012 Дели + | B110: Хлеб ржаной | C110: 40 | D110: 2.64 | E110: 0.48 | F110: 15.84 | G110: 79.20 | H110: 0.07 | I110: 0.00 | J110: 0.00 | K110: 0.56 | L110: 11.60 | M110: 60.00 | N110: 18.80 | O110: 1.56
B111: Итого: | C111: 653 | D111: =D105+D106+D107+D108+D109+D110 -> 21.42 | E111: =E105+E106+E107+E108+E109+E110 -> 21.88 | F111: 91.74 | G111: 659.19 | H111: 0.28 | I111: 13.73 | J111: 119.20 | K111: 4.19 | L111: 114.55 | M111: 330.48 | N111: 69.56 | O111: 7.81 | P111: 0.00 | Q111: 0.00
B113: 2 день
A114: №3 Сбор.рец. На прод-ию для обуч. Во всех образ.учреж-Дели 2017 | B114: Бутерброд с маслом сливочным и сыром | C114: 50 | D114: 4.990 | E114: 10.15 | F114: 14.890 | G114: 170 | H114: 0.037 | I114: 0.07 | J114: 61 | K114: 0.480 | L114: 108.400 | M114: 82.500 | N114: 9.700 | O114: 0.420
A115: №143,241 Сбор.рец. На прод-ию для обуч. Во всех образ.учреж-Дели 2017 | B115: Овощи тушеные с мясом | C115: 50/200 | D115: 13.33 | E115: 13.28 | F115: 43.58 | G115: 346.67 | H115: 0.02 | I115: 18.77 | J115: 39.00 | K115: 0.00 | L115: 68.94 | M115: 172.79 | N115: 38.24 | O115: 2.24
A116: ТТК | B116: Чай "Витаминный" с ягодами | C116: 185/10/5 | D116: 0.24 | E116: 0.09 | F116: 12.420 | G116: 54 | H116: 0.004 | I116: 50.03 | J116: 0 | K116: 0.19 | L116: 13.950 | M116: 3.65 | N116: 2.25 | O116: 0.410
A117: Хим.состав и калорийность российских продуктов питания табл 6 стр 134 , 2012 Дели + | B117: Хлеб пшеничный | C117: 20 | D117: 1.52 | E117: 0.16 | F117: 9.840 | G117: 47 | H117: 0.022 | I117: 0 | J117: 0 | K117: 0.22 | L117: 4.000 | M117: 13 | N117: 2.8 | O117: 0.220
A118: Хим.состав и калорийность российских продуктов питания,табл 6, стр 144 , 2012 Дели + | B118: Хлеб ржаной | C118: 30 | D118: 1.980 | E118: 0.360 | F118: 11.880 | G118: 59 | H118: 0.051 | I118: 0 | J118: 0 | K118: 0.420 | L118: 8.700 | M118: 45.000 | N118: 14.100 | O118: 1.170
B119: Итого: | C119: 550 | D119: =SUM(D114:D118) -> 22.06 | E119: =SUM(E114:E118) -> 24.04 | F119: 92.61 | G119: 677.60 | H119: 0.14 | I119: 68.87 | J119: 100.00 | K119: 1.31 | L119: 203.99 | M119: 316.94 | N119: 67.09 | O119: 4.46 | P119: 25% | Q119: 25%
B121: 3 день
A122: № 52 Сбор.рец. На прод-ию для обуч. Во всех образ.учреж-Дели -2017 | B122: Салат из свеклы отварной | C122: 100 | D122: 0.84 | E122: 3.61 | F122: 4.96 | G122: 55.68 | H122: 0.01 | I122: 3.99 | J122: 0.00 | K122: 1.62 | L122: 21.28 | M122: 24.38 | N122: 12.42 | O122: 0.79
A123: № 294 Сбор.рец. На прод-ию для обуч. Во всех образ.учреж-Дели -2017 | B123: Котлеты из мяса кур в томатном соусе | C123: 80/30 | D123: 10.05 | E123: 9.40 | F123: 16.31 | G123: 202.54 | H123: 0.17 | I123: 1.19 | J123: 19.36 | K123: 54.72 | L123: 50.63 | M123: 68.95 | N123: 21.46 | O123: 3.01
A124: № 312 Сбор.рец. На прод-ию для обуч. Во всех образ.учреж-Дели -2017 | B124: Пюре картофельное | C124: 180 | D124: 3.68 | E124: 5.76 | F124: 20.53 | G124: 154.70 | H124: 0.17 | I124: 21.79 | J124: 0.00 | K124: 0.22 | L124: 44.37 | M124: 103.91 | N124: 33.30 | O124: 1.21
A125: № 376 Сбор.рец. На прод-ию для обуч. Во всех образ.учреж-Дели 2017 | B125: Чай с сахаром | C125: 190/10 | D125: 0.07 | E125: 0.02 | F125: 10.00 | G125: 40.00 | I125: 0.03 | L125: 10.95 | M125: 2.80 | N125: 1.40 | O125: 0.26
A126: Хим.состав и калорийность российских продуктов питания табл 6 стр 134 , 2012 Дели + | B126: Хлеб пшеничный | C126: 20 | D126: 1.520 | E126: 0.160 | F126: 9.840 | G126: 47 | H126: 0.022 | I126: 0 | J126: 0 | K126: 0.220 | L126: 4.000 | M126: 13.000 | N126: 2.800 | O126: 0.220
A127: Хим.состав и калорийность российских продуктов питания,табл 6, стр 144 , 2012 Дели + | B127: Хлеб ржаной | C127: 30 | D127: 1.980 | E127: 0.360 | F127: 11.880 | G127: 59 | H127: 0.051 | I127: 0 | J127: 0 | K127: 0.420 | L127: 8.700 | M127: 45.000 | N127: 14.100 | O127: 1.170
B128: Итого: | C128: 640 | D128: =SUM(D122:D127) -> 18.14 | E128: =SUM(E122:E127) -> 19.31 | F128: 73.51 | G128: 559.32 | H128: 0.42 | I128: 27.01 | J128: 19.36 | K128: 57.19 | L128: 139.92 | M128: 258.04 | N128: 85.47 | O128: 6.66 | P128: 20% | Q128: 20%
B133: 4 день
A134: №279,331 Сбор.рец. На прод-ию для питания детей в дошк образоват учрежд-Дели 2017 | B134: Тефтели мясные в сметанно-томатном соусе | C134: 60/40 | D134: 7.284 | E134: 11.790 | F134: 8.738 | G134: 124 | H134: 0.048 | I134: 0.276 | J134: 29.620 | K134: 0.421 | L134: 20.726 | M134: 80.202 | N134: 15.521 | O134: 0.640
A135: № 203 Сбор.рец. На прод-ию для обуч. Во всех образ.учреж-Дели 2017 | B135: Макаронные изделия отварные с маслом сливочным | C135: 180/3 | D135: 6.120 | E135: 2.980 | F135: 38.400 | G135: 207 | H135: 0.068 | I135: 0.000 | J135: 12.000 | K135: 0.96 | L135: 14.150 | M135: 45.500 | N135: 10.343 | O135: 1.023
A136: ТТК | B136: Напиток из свежих фруктов (75 С) | C136: 200 | D136: 0.34 | E136: 0.17 | F136: 11.48 | G136: 63.60 | H136: 0.02 | I136: 3.17 | J136: 0.00 | K136: 0.13 | L136: 16.67 | M136: 7.05 | N136: 7.78 | O136: 0.88
A137: Хим.состав и калорийность российских продуктов питания табл 6 стр 134 , 2012 Дели + | B137: Хлеб пшеничный | C137: 35 | D137: 2.66 | E137: 0.28 | F137: 17.22 | G137: 82.25 | H137: 0.04 | I137: 0.00 | J137: 0.00 | K137: 0.39 | L137: 7.00 | M137: 22.75 | N137: 4.90 | O137: 0.39
A138: Хим.состав и калорийность российских продуктов питания,табл 6, стр 144 , 2012 Дели + | B138: Хлеб ржаной | C138: 35 | D138: 2.310 | E138: 0.420 | F138: 13.860 | G138: 69 | H138: 0.060 | I138: 0 | J138: 0 | K138: 0.490 | L138: 10.150 | M138: 52.500 | N138: 16.450 | O138: 1.365
B139: Итого: | C139: 553 | D139: =SUM(D134:D138) -> 18.71 | E139: =E134+E135+E135+E136+E137+E138 -> 18.62 | F139: =F134+F135+F137+F138 -> 78.22 | G139: =SUM(G134:G138) -> 546.18 | H139: 0.24 | I139: 3.45 | J139: 41.62 | K139: 2.39 | L139: 68.69 | M139: 208.00 | N139: 55.00 | O139: 4.29 | P139: 20% | Q139: 20%
B141: 5 день
A142: № 45 Сбор.рец. На прод-ию для обуч. Во всех образ.учреж-Дели -2017 | B142: Салат из свежей капусты с морковью | C142: 100 | D142: 1.31 | E142: 3.25 | F142: 6.47 | G142: 60.40 | H142: 0.02 | I142: 17.10 | J142: 0.00 | K142: 8.39 | L142: 24.97 | M142: 28.31 | N142: 15.09 | O142: 0.47
A143: № 265 Сбор.рец. На прод-ию для обуч. Во всех образ.учреж-Дели -2017 | B143: Плов из говядины с рисом | C143: 50/200 | D143: 18.97 | E143: 20.36 | F143: 54.79 | G143: 509.83 | H143: 0.08 | I143: 2.31 | J143: 0.00 | K143: 5.25 | L143: 22.04 | M143: 285.70 | N143: 63.75 | O143: 4.13
A144: № 376 Сбор.рец. На прод-ию для обуч. Во всех образ.учреж-Дели 2017 | B144: Чай с сахаром,с яблоком | C144: 180/10/10 | D144: 0.11 | E144: 0.06 | F144: 10.990 | G144: 45 | H144: 0.003 | I144: 1.03 | K144: 0.02 | L144: 12.700 | M144: 3.9 | N144: 2.3 | O144: 0.500
A145: Хим.состав и калорийность российских продуктов питания табл 6 стр 134 , 2012 Дели + | B145: Хлеб пшеничный | C145: 20 | D145: 1.520 | E145: 0.160 | F145: 9.840 | G145: 47 | H145: 0.022 | I145: 0 | J145: 0 | K145: 0.220 | L145: 4.000 | M145: 13.000 | N145: 2.800 | O145: 0.220
A146: Хим.состав и калорийность российских продуктов питания,табл 6, стр 144 , 2012 Дели + | B146: Хлеб ржаной | C146: 25 | D146: 1.65 | E146: 0.30 | F146: 9.90 | G146: 49.50 | H146: 0.04 | I146: 0.00 | J146: 0.00 | K146: 0.35 | L146: 7.25 | M146: 37.50 | N146: 11.75 | O146: 0.98
B147: Итого: | C147: 595 | D147: =D142+D143+D144+D145+D146 -> 23.56 | E147: =E142+E143+E144+E145+E146 -> 24.13 | F147: 91.99 | G147: 711.78 | H147: 0.17 | I147: 20.44 | J147: 0.00 | K147: 14.23 | L147: 70.96 | M147: 368.40 | N147: 95.69 | O147: 6.29 | P147: 25% | Q147: 25%
B149: ВСЕГО за 10 дней: | C149: =C60+C69+C77+C86+C95+C111+C119+C128+C139+C147 -> 6032 | D149: =D60+D69+D77+D86+D95+D111+D119+D128+D139+D147 -> 211.37 | E149: 216.21 | F149: 884.47 | G149: 6407.21 | H149: 2.80 | I149: 208.60 | J149: 481.01 | K149: 107.61 | L149: 1247.03 | M149: 3224.21 | N149: 931.88 | O149: 59.68
B150: В среднем на 1 учащегося в день: | C150: =C149/10 -> 603 | D150: =D149/10 -> 21.14 | E150: 21.62 | F150: 88.45 | G150: 640.72 | H150: 0.28 | I150: 20.86 | J150: 48.10 | K150: 10.76 | L150: 124.70 | M150: 322.42 | N150: 93.19 | O150: 5.97 | P150: 20-25%
